[Event "Titled Tuesday Blitz November 15 Late 2022"]
[White "Mr_Penings"]
[Black "Szente Varga, Fruzsina"]
[BlackFideId "712264"]
[WhiteElo "2670"]
[BlackElo "1994"]
[Result "1-0"]
[Round "04"]
[TimeControl "180+1"]
[Date "2022.11.16"]
[WhiteClock "0:00:23"]
[BlackClock "0:00:05"]

1. c4 {[%clk 0:02:53]}  e5 {[%clk 0:02:58]} 2. Nc3 {[%clk 0:02:53]}  g6 {[%clk 0:02:57]} 3. g3 {[%clk 0:02:52]}  Bg7 {[%clk 0:02:57]} 4. Bg2 {[%clk 0:02:53]}  f5 {[%clk 0:02:54]} 5. d3 {[%clk 0:02:50]}  Nf6 {[%clk 0:02:54]} 6. e4 {[%clk 0:02:51]}  d6 {[%clk 0:02:52]} 7. Nge2 {[%clk 0:02:51]}  O-O {[%clk 0:02:52]} 8. O-O {[%clk 0:02:51]}  Be6 {[%clk 0:02:44]} 9. exf5 {[%clk 0:02:45]}  Bxf5 {[%clk 0:02:41]} 10. Bxb7 {[%clk 0:02:43]}  Nbd7 {[%clk 0:02:41]} 11. Bxa8 {[%clk 0:02:29]}  Qxa8 {[%clk 0:02:42]} 12. f3 {[%clk 0:02:28]}  Bh3 {[%clk 0:02:37]} 13. Rf2 {[%clk 0:02:27]}  Nc5 {[%clk 0:02:02]} 14. Ne4 {[%clk 0:02:03]}  Ne6 {[%clk 0:01:25]} 15. Be3 {[%clk 0:01:59]}  d5 {[%clk 0:01:17]} 16. Nxf6+ {[%clk 0:01:51]}  Rxf6 {[%clk 0:01:18]} 17. cxd5 {[%clk 0:01:51]}  Qxd5 {[%clk 0:01:19]} 18. Nc3 {[%clk 0:01:51]}  Qb7 {[%clk 0:01:17]} 19. Qb3 {[%clk 0:01:46]}  Qc6 {[%clk 0:01:06]} 20. Qd5 {[%clk 0:01:40]}  Qa6 {[%clk 0:00:52]} 21. Ne4 {[%clk 0:01:31]}  Rf8 {[%clk 0:00:50]} 22. g4 {[%clk 0:01:20]}  Kh8 {[%clk 0:00:46]} 23. Qc4 {[%clk 0:01:16]}  Qxc4 {[%clk 0:00:34]} 24. dxc4 {[%clk 0:01:16]}  h5 {[%clk 0:00:34]} 25. gxh5 {[%clk 0:01:12]}  gxh5 {[%clk 0:00:33]} 26. Rd1 {[%clk 0:01:10]}  Nd4 {[%clk 0:00:31]} 27. f4 {[%clk 0:01:04]}  Bg4 {[%clk 0:00:24]} 28. Rdf1 {[%clk 0:01:04]}  Ne2+ {[%clk 0:00:20]} 29. Kg2 {[%clk 0:01:02]}  exf4 {[%clk 0:00:15]} 30. Bxf4 {[%clk 0:00:55]}  Re8 {[%clk 0:00:15]} 31. Ng3 {[%clk 0:00:47]}  Bd4 {[%clk 0:00:13]} 32. h3 {[%clk 0:00:37]}  Bxf2 {[%clk 0:00:11]} 33. Rxf2 {[%clk 0:00:38]}  Nxf4+ {[%clk 0:00:11]} 34. Rxf4 {[%clk 0:00:37]}  Be6 {[%clk 0:00:11]} 35. Nxh5 {[%clk 0:00:36]}  Rg8+ {[%clk 0:00:11]} 36. Kf3 {[%clk 0:00:35]}  Rg1 {[%clk 0:00:11]} 37. Rf8+ {[%clk 0:00:28]}  Kh7 {[%clk 0:00:10]} 38. Nf4 {[%clk 0:00:24]}  Bxc4 {[%clk 0:00:10]} 39. Rc8 {[%clk 0:00:24]}  c6 {[%clk 0:00:06]} 40. Rc7+ {[%clk 0:00:24]}  Kh6 {[%clk 0:00:05]} 41. Rxc6+ {[%clk 0:00:24]}  Kg5 {[%clk 0:00:05]} 42. Rc5+ {[%clk 0:00:24]}  Kh4 {[%clk 0:00:05]} 43. Rh5# {[%clk 0:00:23]} 1-0


[Site "https://www.chess.com"]

[Event "Titled Tuesday Blitz November 15 Late 2022"]
[White "Osmak, Yuliia"]
[Black "Rangel, Daniel"]
[WhiteFideId "14101602"]
[BlackFideId "2124475"]
[WhiteElo "2328"]
[BlackElo "2225"]
[Result "0-1"]
[Round "04"]
[TimeControl "180+1"]
[Date "2022.11.16"]
[WhiteClock "0:00:02"]
[BlackClock "0:00:09"]

1. d4 {[%clk 0:03:00]}  Nf6 {[%clk 0:02:59]} 2. c4 {[%clk 0:03:00]}  e6 {[%clk 0:02:59]} 3. Nc3 {[%clk 0:02:56]}  d5 {[%clk 0:02:58]} 4. Nf3 {[%clk 0:02:43]}  c6 {[%clk 0:02:57]} 5. Bg5 {[%clk 0:02:41]}  Nbd7 {[%clk 0:02:57]} 6. e3 {[%clk 0:02:40]}  h6 {[%clk 0:02:58]} 7. Bh4 {[%clk 0:02:36]}  g5 {[%clk 0:02:58]} 8. Bg3 {[%clk 0:02:36]}  Nh5 {[%clk 0:02:59]} 9. Be5 {[%clk 0:02:33]}  Nxe5 {[%clk 0:02:53]} 10. Nxe5 {[%clk 0:02:32]}  Nf6 {[%clk 0:02:52]} 11. h4 {[%clk 0:02:27]}  Bg7 {[%clk 0:02:50]} 12. hxg5 {[%clk 0:02:26]}  hxg5 {[%clk 0:02:51]} 13. Rxh8+ {[%clk 0:02:26]}  Bxh8 {[%clk 0:02:52]} 14. Bd3 {[%clk 0:02:22]}  Nd7 {[%clk 0:02:34]} 15. Qh5 {[%clk 0:01:44]}  Bxe5 {[%clk 0:02:32]} 16. dxe5 {[%clk 0:01:44]}  Qe7 {[%clk 0:02:19]} 17. O-O-O {[%clk 0:01:42]}  Nf8 {[%clk 0:01:15]} 18. f4 {[%clk 0:01:38]}  gxf4 {[%clk 0:01:14]} 19. exf4 {[%clk 0:01:39]}  Bd7 {[%clk 0:01:13]} 20. f5 {[%clk 0:01:19]}  O-O-O {[%clk 0:00:57]} 21. f6 {[%clk 0:01:15]}  Qe8 {[%clk 0:00:52]} 22. c5 {[%clk 0:01:08]}  Kb8 {[%clk 0:00:49]} 23. Qg5 {[%clk 0:01:04]}  Bc8 {[%clk 0:00:47]} 24. Rh1 {[%clk 0:00:58]}  Nd7 {[%clk 0:00:46]} 25. b4 {[%clk 0:00:58]}  Qg8 {[%clk 0:00:45]} 26. Rh5 {[%clk 0:00:44]}  Rf8 {[%clk 0:00:23]} 27. Ne2 {[%clk 0:00:40]}  b6 {[%clk 0:00:18]} 28. Nd4 {[%clk 0:00:35]}  Qxg5+ {[%clk 0:00:14]} 29. Rxg5 {[%clk 0:00:33]}  bxc5 {[%clk 0:00:12]} 30. Nxc6+ {[%clk 0:00:33]}  Kc7 {[%clk 0:00:12]} 31. Nxa7 {[%clk 0:00:30]}  c4 {[%clk 0:00:10]} 32. Bh7 {[%clk 0:00:26]}  Ba6 {[%clk 0:00:11]} 33. b5 {[%clk 0:00:24]}  Bb7 {[%clk 0:00:09]} 34. Rg7 {[%clk 0:00:15]}  Nxe5 {[%clk 0:00:09]} 35. g4 {[%clk 0:00:08]}  Kb6 {[%clk 0:00:09]} 36. Nc6 {[%clk 0:00:08]}  Bxc6 {[%clk 0:00:09]} 37. bxc6 {[%clk 0:00:09]}  Kxc6 {[%clk 0:00:09]} 38. g5 {[%clk 0:00:09]}  Kd6 {[%clk 0:00:10]} 39. a4 {[%clk 0:00:07]}  d4 {[%clk 0:00:10]} 40. a5 {[%clk 0:00:06]}  Kc6 {[%clk 0:00:10]} 41. a6 {[%clk 0:00:04]}  Kb6 {[%clk 0:00:11]} 42. a7 {[%clk 0:00:05]}  Kxa7 {[%clk 0:00:11]} 43. g6 {[%clk 0:00:05]}  Kb6 {[%clk 0:00:11]} 44. gxf7 {[%clk 0:00:04]}  Rxf7 {[%clk 0:00:10]} 45. Bg8 {[%clk 0:00:04]}  Rxf6 {[%clk 0:00:10]} 46. Re7 {[%clk 0:00:03]}  Kc5 {[%clk 0:00:09]} 47. Bxe6 {[%clk 0:00:02]}  d3 {[%clk 0:00:09]} 0-1


[Site "https://www.chess.com"]

[Event "Titled Tuesday Blitz November 15 Late 2022"]
[White "Papayan, Oleg"]
[Black "Rodriguez Santiago, Jaime"]
[WhiteFideId "4193911"]
[BlackFideId "3100898"]
[WhiteElo "2153"]
[BlackElo "2025"]
[Result "1-0"]
[Round "04"]
[TimeControl "180+1"]
[Date "2022.11.16"]
[WhiteClock "0:00:09"]
[BlackClock "0:00:04"]

1. e4 {[%clk 0:03:00]}  c6 {[%clk 0:02:59]} 2. Nc3 {[%clk 0:02:59]}  d5 {[%clk 0:02:59]} 3. Nf3 {[%clk 0:02:59]}  dxe4 {[%clk 0:03:00]} 4. Nxe4 {[%clk 0:03:00]}  Nf6 {[%clk 0:03:00]} 5. Qe2 {[%clk 0:03:00]}  Nxe4 {[%clk 0:02:59]} 6. Qxe4 {[%clk 0:03:01]}  Nd7 {[%clk 0:02:59]} 7. Bc4 {[%clk 0:03:01]}  Nf6 {[%clk 0:02:59]} 8. Ne5 {[%clk 0:03:02]}  e6 {[%clk 0:02:59]} 9. Qe2 {[%clk 0:03:02]}  b5 {[%clk 0:02:59]} 10. Bb3 {[%clk 0:03:02]}  Qc7 {[%clk 0:02:55]} 11. d4 {[%clk 0:02:59]}  a5 {[%clk 0:02:54]} 12. a4 {[%clk 0:02:59]}  b4 {[%clk 0:02:53]} 13. O-O {[%clk 0:02:56]}  Be7 {[%clk 0:02:51]} 14. Bf4 {[%clk 0:02:48]}  Qb6 {[%clk 0:02:35]} 15. Nc4 {[%clk 0:02:24]}  Qxd4 {[%clk 0:02:25]} 16. Be5 {[%clk 0:02:02]}  Qh4 {[%clk 0:02:17]} 17. Nb6 {[%clk 0:01:48]}  Ba6 {[%clk 0:02:05]} 18. Qf3 {[%clk 0:01:40]}  O-O {[%clk 0:01:38]} 19. Nxa8 {[%clk 0:01:37]}  Bxf1 {[%clk 0:01:36]} 20. Nc7 {[%clk 0:01:23]}  Bc4 {[%clk 0:00:57]} 21. Bg3 {[%clk 0:00:50]}  Qd4 {[%clk 0:00:54]} 22. Rd1 {[%clk 0:00:51]}  Qc5 {[%clk 0:00:52]} 23. h3 {[%clk 0:00:22]}  Bd5 {[%clk 0:00:52]} 24. Nxd5 {[%clk 0:00:19]}  cxd5 {[%clk 0:00:52]} 25. Qe2 {[%clk 0:00:18]}  Ne4 {[%clk 0:00:50]} 26. Be5 {[%clk 0:00:16]}  f6 {[%clk 0:00:46]} 27. Bd4 {[%clk 0:00:16]}  Qc6 {[%clk 0:00:45]} 28. f3 {[%clk 0:00:16]}  Ng5 {[%clk 0:00:43]} 29. Qb5 {[%clk 0:00:16]}  Rc8 {[%clk 0:00:29]} 30. Qxa5 {[%clk 0:00:13]}  Qd6 {[%clk 0:00:24]} 31. Qb6 {[%clk 0:00:10]}  Qg3 {[%clk 0:00:22]} 32. Kf1 {[%clk 0:00:09]}  Bd6 {[%clk 0:00:20]} 33. Bf2 {[%clk 0:00:09]}  Qh2 {[%clk 0:00:20]} 34. Bg1 {[%clk 0:00:07]}  Qf4 {[%clk 0:00:19]} 35. Qe3 {[%clk 0:00:07]}  Qxe3 {[%clk 0:00:19]} 36. Bxe3 {[%clk 0:00:08]}  Nf7 {[%clk 0:00:19]} 37. a5 {[%clk 0:00:06]}  Ne5 {[%clk 0:00:19]} 38. a6 {[%clk 0:00:06]}  Ra8 {[%clk 0:00:17]} 39. a7 {[%clk 0:00:07]}  Nc6 {[%clk 0:00:16]} 40. Rxd5 {[%clk 0:00:06]}  Bg3 {[%clk 0:00:13]} 41. Rd7 {[%clk 0:00:04]}  h5 {[%clk 0:00:09]} 42. Bxe6+ {[%clk 0:00:04]}  Kh7 {[%clk 0:00:09]} 43. Bd5 {[%clk 0:00:05]}  Rxa7 {[%clk 0:00:07]} 44. Rxa7 {[%clk 0:00:06]}  Nxa7 {[%clk 0:00:07]} 45. Bxa7 {[%clk 0:00:07]}  Be5 {[%clk 0:00:05]} 46. Be4+ {[%clk 0:00:08]}  Kh6 {[%clk 0:00:05]} 47. b3 {[%clk 0:00:08]}  g5 {[%clk 0:00:06]} 48. Be3 {[%clk 0:00:08]}  h4 {[%clk 0:00:04]} 49. Bd2 {[%clk 0:00:09]}  Kg7 {[%clk 0:00:04]} 50. Bxb4 {[%clk 0:00:09]} 1-0


[Site "https://www.chess.com"]

[Event "Titled Tuesday Blitz November 15 Late 2022"]
[White "Phillips, Rene"]
[Black "Ward, Ieuan C"]
[WhiteFideId "2056275"]
[BlackFideId "406627"]
[WhiteElo "1995"]
[BlackElo "2339"]
[Result "0-1"]
[Round "04"]
[TimeControl "180+1"]
[Date "2022.11.16"]
[WhiteClock "0:00:21"]
[BlackClock "0:01:28"]

1. Nf3 {[%clk 0:03:00]}  d5 {[%clk 0:02:46]} 2. d4 {[%clk 0:03:01]}  Nf6 {[%clk 0:02:45]} 3. Bf4 {[%clk 0:03:01]}  e6 {[%clk 0:02:43]} 4. e3 {[%clk 0:03:02]}  c5 {[%clk 0:02:44]} 5. c3 {[%clk 0:03:01]}  Bd6 {[%clk 0:02:44]} 6. Bg3 {[%clk 0:03:00]}  Nc6 {[%clk 0:02:44]} 7. Nbd2 {[%clk 0:02:59]}  O-O {[%clk 0:02:45]} 8. Ne5 {[%clk 0:02:59]}  Qc7 {[%clk 0:02:42]} 9. f4 {[%clk 0:02:59]}  Ne4 {[%clk 0:02:37]} 10. Nxe4 {[%clk 0:02:57]}  dxe4 {[%clk 0:02:37]} 11. Qh5 {[%clk 0:02:56]}  cxd4 {[%clk 0:02:32]} 12. exd4 {[%clk 0:02:54]}  Nxd4 {[%clk 0:02:08]} 13. cxd4 {[%clk 0:02:46]}  Qa5+ {[%clk 0:02:08]} 14. Kd1 {[%clk 0:02:30]}  f6 {[%clk 0:02:07]} 15. Be1 {[%clk 0:02:13]}  Qa4+ {[%clk 0:02:03]} 16. Kc1 {[%clk 0:00:59]}  fxe5 {[%clk 0:02:02]} 17. fxe5 {[%clk 0:00:52]}  Bb4 {[%clk 0:01:58]} 18. Bxb4 {[%clk 0:00:41]}  Qxb4 {[%clk 0:01:59]} 19. Qd1 {[%clk 0:00:39]}  Bd7 {[%clk 0:01:57]} 20. Kb1 {[%clk 0:00:31]}  Rac8 {[%clk 0:01:53]} 21. a3 {[%clk 0:00:29]}  Qb6 {[%clk 0:01:48]} 22. Ka2 {[%clk 0:00:23]}  Rf2 {[%clk 0:01:46]} 23. Rb1 {[%clk 0:00:21]}  Rcc2 {[%clk 0:01:28]} 0-1


[Site "https://www.chess.com"]

[Event "Titled Tuesday Blitz November 15 Late 2022"]
[White "Pino Perez, Lazaro"]
[Black "Bilan, Danila"]
[WhiteFideId "3517055"]
[BlackFideId "24161918"]
[WhiteElo "2170"]
[BlackElo "2173"]
[Result "0-1"]
[Round "04"]
[TimeControl "180+1"]
[Date "2022.11.16"]
[WhiteClock "0:00:06"]
[BlackClock "0:00:14"]

1. d4 {[%clk 0:03:00]}  d5 {[%clk 0:02:57]} 2. Bf4 {[%clk 0:03:01]}  Nf6 {[%clk 0:02:56]} 3. e3 {[%clk 0:03:01]}  c5 {[%clk 0:02:56]} 4. Nf3 {[%clk 0:03:02]}  Nc6 {[%clk 0:02:55]} 5. Nbd2 {[%clk 0:03:02]}  Bg4 {[%clk 0:02:53]} 6. c3 {[%clk 0:03:00]}  Qb6 {[%clk 0:02:41]} 7. Qb3 {[%clk 0:02:52]}  c4 {[%clk 0:02:41]} 8. Qxb6 {[%clk 0:02:52]}  axb6 {[%clk 0:02:41]} 9. a3 {[%clk 0:02:51]}  b5 {[%clk 0:02:40]} 10. Rc1 {[%clk 0:02:50]}  Nh5 {[%clk 0:02:31]} 11. Be5 {[%clk 0:01:39]}  f6 {[%clk 0:02:16]} 12. Bc7 {[%clk 0:01:36]}  Kd7 {[%clk 0:01:57]} 13. Bg3 {[%clk 0:01:20]}  Nxg3 {[%clk 0:01:57]} 14. hxg3 {[%clk 0:01:20]}  e5 {[%clk 0:01:44]} 15. dxe5 {[%clk 0:01:09]}  fxe5 {[%clk 0:01:42]} 16. e4 {[%clk 0:01:09]}  d4 {[%clk 0:01:35]} 17. Bxc4 {[%clk 0:00:41]}  bxc4 {[%clk 0:01:24]} 18. Nxc4 {[%clk 0:00:42]}  Bxf3 {[%clk 0:01:14]} 19. Nb6+ {[%clk 0:00:38]}  Kd8 {[%clk 0:00:51]} 20. Nxa8 {[%clk 0:00:32]}  Bxg2 {[%clk 0:00:47]} 21. Rh4 {[%clk 0:00:19]}  g5 {[%clk 0:00:44]} 22. Rh5 {[%clk 0:00:13]}  h6 {[%clk 0:00:32]} 23. Ke2 {[%clk 0:00:08]}  Bxe4 {[%clk 0:00:29]} 24. f3 {[%clk 0:00:09]}  Bg6 {[%clk 0:00:26]} 25. Rh2 {[%clk 0:00:09]}  d3+ {[%clk 0:00:23]} 26. Kd2 {[%clk 0:00:08]}  Bc5 {[%clk 0:00:21]} 27. b4 {[%clk 0:00:07]}  Ba7 {[%clk 0:00:19]} 28. Re1 {[%clk 0:00:06]}  e4 {[%clk 0:00:14]} 29. fxe4 {[%clk 0:00:06]}  Ne5 {[%clk 0:00:14]} 0-1


[Site "https://www.chess.com"]

[Event "Titled Tuesday Blitz November 15 Late 2022"]
[White "Poliakova, Varvara"]
[Black "Kosakowski, Jakub"]
[WhiteFideId "13518313"]
[BlackFideId "1185080"]
[WhiteElo "2099"]
[BlackElo "2463"]
[Result "1-0"]
[Round "04"]
[TimeControl "180+1"]
[Date "2022.11.16"]
[WhiteClock "0:00:23"]
[BlackClock "0:00:02"]

1. e4 {[%clk 0:02:57]}  e5 {[%clk 0:02:57]} 2. Nf3 {[%clk 0:02:57]}  Nf6 {[%clk 0:02:57]} 3. Nxe5 {[%clk 0:02:56]}  d6 {[%clk 0:02:57]} 4. Nf3 {[%clk 0:02:55]}  Nxe4 {[%clk 0:02:57]} 5. d4 {[%clk 0:02:54]}  d5 {[%clk 0:02:57]} 6. Bd3 {[%clk 0:02:53]}  Bd6 {[%clk 0:02:57]} 7. O-O {[%clk 0:02:54]}  O-O {[%clk 0:02:57]} 8. c3 {[%clk 0:02:51]}  c6 {[%clk 0:02:50]} 9. Nbd2 {[%clk 0:02:49]}  Bf5 {[%clk 0:02:45]} 10. Qc2 {[%clk 0:02:45]}  Re8 {[%clk 0:02:44]} 11. Re1 {[%clk 0:02:43]}  Nd7 {[%clk 0:02:36]} 12. Nxe4 {[%clk 0:02:39]}  dxe4 {[%clk 0:02:36]} 13. Bxe4 {[%clk 0:02:39]}  Rxe4 {[%clk 0:02:36]} 14. Rxe4 {[%clk 0:02:39]}  Nf6 {[%clk 0:02:35]} 15. Re8+ {[%clk 0:02:31]}  Qxe8 {[%clk 0:02:35]} 16. Qxf5 {[%clk 0:02:32]}  Qe2 {[%clk 0:02:32]} 17. Bd2 {[%clk 0:02:27]}  Ne4 {[%clk 0:02:27]} 18. Be3 {[%clk 0:02:19]}  Qxb2 {[%clk 0:02:24]} 19. Re1 {[%clk 0:02:17]}  Nf6 {[%clk 0:02:22]} 20. Bg5 {[%clk 0:02:13]}  Nd5 {[%clk 0:01:54]} 21. g3 {[%clk 0:01:59]}  Qxc3 {[%clk 0:01:49]} 22. Bd2 {[%clk 0:01:55]}  Qa3 {[%clk 0:01:43]} 23. Qd7 {[%clk 0:01:49]}  Qxf3 {[%clk 0:01:40]} 24. Qxd6 {[%clk 0:01:44]}  Qd3 {[%clk 0:01:33]} 25. Qd7 {[%clk 0:01:42]}  Rf8 {[%clk 0:01:31]} 26. Re8 {[%clk 0:01:38]}  Qa3 {[%clk 0:00:45]} 27. Rxf8+ {[%clk 0:01:19]}  Qxf8 {[%clk 0:00:46]} 28. Qxb7 {[%clk 0:01:19]}  Qe8 {[%clk 0:00:41]} 29. Qxa7 {[%clk 0:01:17]}  h5 {[%clk 0:00:40]} 30. Qb7 {[%clk 0:01:11]}  h4 {[%clk 0:00:38]} 31. Qb1 {[%clk 0:01:03]}  Qe2 {[%clk 0:00:34]} 32. Qe1 {[%clk 0:01:00]}  Qf3 {[%clk 0:00:34]} 33. a4 {[%clk 0:00:56]}  Nf6 {[%clk 0:00:31]} 34. h3 {[%clk 0:00:54]}  Ne4 {[%clk 0:00:27]} 35. Bf4 {[%clk 0:00:49]}  g5 {[%clk 0:00:26]} 36. Be5 {[%clk 0:00:44]}  f6 {[%clk 0:00:25]} 37. Bb8 {[%clk 0:00:41]}  g4 {[%clk 0:00:25]} 38. Qe3 {[%clk 0:00:39]}  Qd1+ {[%clk 0:00:15]} 39. Kh2 {[%clk 0:00:39]}  hxg3+ {[%clk 0:00:15]} 40. Bxg3 {[%clk 0:00:37]}  Ng5 {[%clk 0:00:08]} 41. hxg4 {[%clk 0:00:34]}  Qxg4 {[%clk 0:00:07]} 42. Qf4 {[%clk 0:00:29]}  Qh5+ {[%clk 0:00:06]} 43. Bh4 {[%clk 0:00:27]}  Kh7 {[%clk 0:00:02]} 44. Kg3 {[%clk 0:00:26]}  Kg6 {[%clk 0:00:01]} 45. Bxg5 {[%clk 0:00:26]}  fxg5 {[%clk 0:00:02]} 46. Qd6+ {[%clk 0:00:25]}  Kh7 {[%clk 0:00:02]} 47. Qd7+ {[%clk 0:00:23]}  Kh8 {[%clk 0:00:02]} 48. Qh3 {[%clk 0:00:23]} 1-0


[Site "https://www.chess.com"]

[Event "Titled Tuesday Blitz November 15 Late 2022"]
[White "Przybylski, Wojciech"]
[Black "Madaminov, Mukhiddin"]
[WhiteFideId "1117599"]
[BlackFideId "14210703"]
[WhiteElo "2221"]
[BlackElo "2341"]
[Result "0-1"]
[Round "04"]
[TimeControl "180+1"]
[Date "2022.11.16"]
[WhiteClock "0:00:01"]
[BlackClock "0:00:03"]

1. e4 {[%clk 0:03:00]}  e5 {[%clk 0:03:00]} 2. Nf3 {[%clk 0:02:59]}  Nc6 {[%clk 0:03:01]} 3. Bb5 {[%clk 0:02:59]}  a6 {[%clk 0:03:00]} 4. Ba4 {[%clk 0:02:59]}  Nf6 {[%clk 0:03:01]} 5. O-O {[%clk 0:02:58]}  Nxe4 {[%clk 0:03:01]} 6. d4 {[%clk 0:02:58]}  b5 {[%clk 0:03:02]} 7. Bb3 {[%clk 0:02:58]}  d5 {[%clk 0:03:02]} 8. dxe5 {[%clk 0:02:56]}  Be6 {[%clk 0:03:03]} 9. Be3 {[%clk 0:02:55]}  Be7 {[%clk 0:03:02]} 10. c3 {[%clk 0:02:55]}  O-O {[%clk 0:03:02]} 11. Qe2 {[%clk 0:02:54]}  Bg4 {[%clk 0:02:59]} 12. Bd4 {[%clk 0:02:49]}  Nxd4 {[%clk 0:02:48]} 13. cxd4 {[%clk 0:02:48]}  c5 {[%clk 0:02:48]} 14. dxc5 {[%clk 0:02:35]}  Bxc5 {[%clk 0:02:46]} 15. Nc3 {[%clk 0:02:25]}  Nxc3 {[%clk 0:01:58]} 16. bxc3 {[%clk 0:02:25]}  Rc8 {[%clk 0:01:58]} 17. Rad1 {[%clk 0:02:19]}  Qa5 {[%clk 0:01:56]} 18. h3 {[%clk 0:02:14]}  Bf5 {[%clk 0:01:45]} 19. Nd4 {[%clk 0:02:07]}  Bxd4 {[%clk 0:01:33]} 20. cxd4 {[%clk 0:02:06]}  Rfd8 {[%clk 0:01:33]} 21. Rc1 {[%clk 0:01:58]}  Qb4 {[%clk 0:01:28]} 22. Qe3 {[%clk 0:01:53]}  a5 {[%clk 0:01:24]} 23. Rxc8 {[%clk 0:01:50]}  Rxc8 {[%clk 0:01:22]} 24. Bxd5 {[%clk 0:01:45]}  Rd8 {[%clk 0:01:22]} 25. Qf3 {[%clk 0:01:33]}  g6 {[%clk 0:01:19]} 26. Rd1 {[%clk 0:01:26]}  Rd7 {[%clk 0:01:02]} 27. g4 {[%clk 0:01:18]}  Bc2 {[%clk 0:01:01]} 28. e6 {[%clk 0:01:02]}  Re7 {[%clk 0:00:06]} 29. Rc1 {[%clk 0:00:51]}  Qd2 {[%clk 0:00:04]} 30. Qe3 {[%clk 0:00:49]}  Qxe3 {[%clk 0:00:04]} 31. fxe3 {[%clk 0:00:48]}  fxe6 {[%clk 0:00:05]} 32. Rxc2 {[%clk 0:00:32]}  exd5 {[%clk 0:00:05]} 33. Kf2 {[%clk 0:00:32]}  Rb7 {[%clk 0:00:02]} 34. Rc5 {[%clk 0:00:30]}  a4 {[%clk 0:00:02]} 35. Rxd5 {[%clk 0:00:20]}  b4 {[%clk 0:00:02]} 36. Rc5 {[%clk 0:00:17]}  b3 {[%clk 0:00:03]} 37. axb3 {[%clk 0:00:17]}  axb3 {[%clk 0:00:04]} 38. Rc1 {[%clk 0:00:17]}  Kf7 {[%clk 0:00:04]} 39. Ke2 {[%clk 0:00:16]}  Ke6 {[%clk 0:00:04]} 40. Kd3 {[%clk 0:00:16]}  b2 {[%clk 0:00:05]} 41. Rb1 {[%clk 0:00:16]}  Rb3+ {[%clk 0:00:05]} 42. Kd2 {[%clk 0:00:12]}  Kd5 {[%clk 0:00:06]} 43. Kc2 {[%clk 0:00:10]}  Rxe3 {[%clk 0:00:05]} 44. Kxb2 {[%clk 0:00:10]}  Rxh3 {[%clk 0:00:05]} 45. Rd1 {[%clk 0:00:09]}  Rh4 {[%clk 0:00:05]} 46. Kc3 {[%clk 0:00:08]}  Rxg4 {[%clk 0:00:05]} 47. Rh1 {[%clk 0:00:04]}  Rg3+ {[%clk 0:00:05]} 48. Kd2 {[%clk 0:00:04]}  h5 {[%clk 0:00:05]} 49. Rh4 {[%clk 0:00:03]}  Rg5 {[%clk 0:00:03]} 50. Ke3 {[%clk 0:00:02]}  Rg1 {[%clk 0:00:03]} 51. Rf4 {[%clk 0:00:01]}  Rg3+ {[%clk 0:00:03]} 52. Ke2 {[%clk 0:00:01]}  g5 {[%clk 0:00:03]} 0-1


[Site "https://www.chess.com"]

[Event "Titled Tuesday Blitz November 15 Late 2022"]
[White "Quirke, Jeffrey"]
[Black "D`Arruda, Ricardo D."]
[WhiteFideId "2013029"]
[BlackFideId "100692"]
[WhiteElo "2212"]
[BlackElo "2485"]
[Result "0-1"]
[Round "04"]
[TimeControl "180+1"]
[Date "2022.11.16"]
[WhiteClock "0:00:44"]
[BlackClock "0:01:40"]

1. e4 {[%clk 0:02:57]}  c5 {[%clk 0:02:59]} 2. Nf3 {[%clk 0:02:57]}  Nc6 {[%clk 0:02:59]} 3. b4 {[%clk 0:02:56]}  cxb4 {[%clk 0:02:58]} 4. d4 {[%clk 0:02:56]}  d6 {[%clk 0:02:57]} 5. Bd3 {[%clk 0:02:44]}  Nf6 {[%clk 0:02:55]} 6. O-O {[%clk 0:02:42]}  g6 {[%clk 0:02:55]} 7. a3 {[%clk 0:02:28]}  bxa3 {[%clk 0:02:54]} 8. Bxa3 {[%clk 0:02:26]}  Bg7 {[%clk 0:02:53]} 9. Re1 {[%clk 0:02:25]}  O-O {[%clk 0:02:52]} 10. Nbd2 {[%clk 0:02:20]}  Bd7 {[%clk 0:02:41]} 11. h3 {[%clk 0:02:19]}  Rc8 {[%clk 0:02:33]} 12. Rb1 {[%clk 0:01:58]}  b6 {[%clk 0:02:31]} 13. c4 {[%clk 0:01:42]}  Nh5 {[%clk 0:02:27]} 14. Bb2 {[%clk 0:01:36]}  e5 {[%clk 0:02:24]} 15. d5 {[%clk 0:01:32]}  Na5 {[%clk 0:02:00]} 16. Bc3 {[%clk 0:01:22]}  Nf4 {[%clk 0:01:58]} 17. Bf1 {[%clk 0:01:21]}  Nb7 {[%clk 0:01:50]} 18. Ra1 {[%clk 0:01:17]}  a5 {[%clk 0:01:49]} 19. Rb1 {[%clk 0:01:16]}  Nc5 {[%clk 0:01:48]} 20. Qc2 {[%clk 0:01:07]}  f5 {[%clk 0:01:47]} 21. Kh2 {[%clk 0:00:52]}  fxe4 {[%clk 0:01:41]} 22. Nxe4 {[%clk 0:00:44]}  Nxe4 {[%clk 0:01:40]} 0-1


[Site "https://www.chess.com"]